[Event "4NCL Spring GM Round Robin 2024"]
[Site "Peterborough"]
[Date "2024.03.27"]
[Round "8.4"]
[White "Chow, Samuel"]
[Black "Cherniaev, Alexander"]
[Result "1-0"]
[ECO "E94"]
[WhiteElo "2356"]
[BlackElo "2375"]
[Annotator "RC"]
[PlyCount "139"]
[EventDate "2024.03.22"]
[EventType "tourn"]
[EventCountry "ENG"]
[SourceTitle "playchess.com"]
[Source "ChessBase"]
[SourceQuality "1"]
[TimeControl "5400+30"]

1. c4 {[%emt 0:00:03]} g6 {[%emt 0:06:07]} 2. e4 {[%emt 0:00:14]} Bg7 {[%emt 0:00:11]} 3. d4 {[%emt 0:00:16]} d6 {[%emt 0:00:09]} 4. Nc3 {[%emt 0:00:15]} Nf6 {[%emt 0:00:13]} 5. Nf3 {[%emt 0:00:33]} O-O {[%emt 0:00:07]} 6. Be2 {[%emt 0:00:11]} Na6 {[%emt 0:00:25]} 7. O-O {[%emt 0:01:46]} e5 {[%emt 0:00:12]} 8. Be3 {[%emt 0:00:27]} Qe7 {[%emt 0:00:07]} 9. h3 {[%emt 0:08:58]} exd4 {[%emt 0:03:36]} 10. Bxd4 {[%emt 0:01:26]} Nxe4 {[%emt 0:04:26]} 11. Bxg7 {[%emt 0:00:14]} Kxg7 {[%emt 0:00:06]} 12. Qd4+ {[%emt 0:00:17]} Nf6 {[%emt 0:00:01]} 13. Nd5 {[%emt 0:00:10]} Qd8 {[%emt 0:00:13]} 14. Ng5 {[%emt 0:00:23]} Be6 {[%emt 0:17:13]} 15. Nxf6 {[%emt 0:00:40]} Qxf6 {[%emt 0:00:07]} 16. Qxf6+ {[%emt 0:00:04]} Kxf6 {[%emt 0:00:03]} 17. Nxh7+ {[%emt 0:00:06]} Ke7 {[%emt 0:00:17]} 18. Nxf8 {[%emt 0:00:06]} Rxf8 {[%emt 0:00:03]} 19. h4 {[%emt 0:04:43]} Nb4 {[%emt 0:00:53]} 20. Rad1 {[%emt 0:03:08]} c5 {[%emt 0:00:47]} 21. Rd2 {[%emt 0:05:19]} Nc6 {[%emt 0:00:50]} 22. Rfd1 {[%emt 0:02:13]} Nd4 {[%emt 0:00:24]} 23. Rxd4 {[%emt 0:02:34]} cxd4 {[%emt 0:00:09]} 24. Rxd4 {[%emt 0:00:06]} Rc8 {[%emt 0:00:30]} 25. g4 {[%emt 0:06:40]} b5 {[%emt 0:04:47]} 26. b3 {[%emt 0:00:42]} bxc4 {[%emt 0:01:26]} 27. Bxc4 {[%emt 0:01:11]} d5 {[%emt 0:00:46]} 28. Bf1 {[%emt 0:00:28]} Rh8 {[%emt 0:07:34]} 29. g5 {[%emt 0:00:49]} Kd6 {[%emt 0:03:08]} 30. Kg2 {[%emt 0:05:40]} a5 {[%emt 0:07:58]} 31. Ra4 {[%emt 0:08:02]} Bd7 {[%emt 0:04:54]} 32. Rxa5 {[%emt 0:00:55]} Rxh4 {[%emt 0:00:07]} 33. f3 {[%emt 0:00:57]} Rh5 {[%emt 0:05:02]} 34. f4 {[%emt 0:00:17]} Bh3+ {[%emt 0:00:04]} 35. Kf2 {[%emt 0:00:10]} Bxf1 {[%emt 0:00:06]} 36. Kxf1 {[%emt 0:00:04]} Rh4 {[%emt 0:03:07]} 37. Ra6+ {[%emt 0:04:40]} Kc5 {[%emt 0:32:52]} 38. Rf6 {[%emt 0:00:27]} Kd4 {[%emt 0:00:00]} 39. Rxf7 {[%emt 0:01:01]} Ke3 {[%emt 0:00:00]} 40. f5 {[%emt 0:05:34]} Rh1+ {[%emt 0:00:00]} 41. Kg2 {[%emt 0:00:07]} Rh5 {[%emt 0:00:00]} 42. f6 {[%emt 0:08:30]} Rxg5+ {[%emt 0:00:00]} 43. Kf1 {[%emt 0:00:09]} Kd2 {[%emt 0:00:00]} 44. a4 {[%emt 0:03:37]} Rf5+ {[%emt 0:00:00]} 45. Kg2 {[%emt 0:00:04]} d4 {[%emt 0:00:00]} 46. b4 {[%emt 0:01:33]} d3 {[%emt 0:00:00]} 47. b5 {[%emt 0:01:19]} Kc3 {[%emt 0:01:50]} 48. b6 {[%emt 0:03:45]} d2 {[%emt 0:00:06]} 49. Rd7 {[%emt 0:00:33]} Rxf6 {[%emt 0:00:23]} 50. a5 {[%emt 0:00:06]} Rf7 {[%emt 0:02:28]} 51. Rxd2 {[%emt 0:01:50]} Kxd2 {[%emt 0:00:08]} 52. a6 {[%emt 0:00:03]} Rf6 {[%emt 0:00:23]} 53. a7 {[%emt 0:00:27]} Rxb6 {[%emt 0:00:04]} 54. a8=Q {[%emt 0:23:38]} Rb3 {[%emt 0:00:37]} 55. Qd5+ {[%emt 0:00:00]} Rd3 {[%emt 0:00:11]} 56. Qg5+ {[%emt 0:00:00]} Kc3 {[%emt 0:00:57]} 57. Qxg6 {[%emt 0:00:00]} Kd4 {[%emt 0:00:43]} 58. Kf2 {[%emt 0:00:00]} Rd2+ {[%emt 0:00:29]} 59. Kf3 {[%emt 0:00:00]} Rd3+ {[%emt 0:00:03]} 60. Kf4 {[%emt 0:00:00]} Kc3 {[%emt 0:00:12]} 61. Ke4 {[%emt 0:00:00]} Rd4+ {[%emt 0:00:29]} 62. Ke3 {[%emt 0:00:00]} Rc4 {[%emt 0:00:38]} 63. Qb6 {[%emt 0:00:00]} Kc2 {[%emt 0:00:58]} 64. Qa5 {[%emt 0:00:00]} Kb3 {[%emt 0:01:18]} 65. Kd3 {[%emt 0:00:00]} Rb4 {[%emt 0:00:06]} 66. Qd5+ {[%emt 0:00:00]} Kb2 {[%emt 0:00:47]} 67. Qc5 {[%emt 0:00:00]} Kb3 {[%emt 0:00:14]} 68. Qa5 {[%emt 0:00:00]} Ra4 {[%emt 0:00:55]} 69. Qc3+ {[%emt 0:00:00]} Ka2 {[%emt 0:00:06]} 70. Kc2 {[%emt 0:00:00]} 1-0

[Event "4NCL Spring GM Round Robin 2024"]
[Site "Peterborough"]
[Date "2024.03.27"]
[Round "9.1"]
[White "Harvey, Marcus R"]
[Black "Gumularz, Szymon"]
[Result "1/2-1/2"]
[ECO "A20"]
[WhiteElo "2468"]
[BlackElo "2590"]
[Annotator "TA"]
[PlyCount "115"]
[EventDate "2024.03.22"]
[EventType "tourn"]
[EventCountry "ENG"]
[SourceTitle "playchess.com"]
[Source "ChessBase"]
[SourceQuality "1"]
[TimeControl "5400+30"]

{[%evp 35,115,-44,-37,-64,-52,-44,-28,-32,-25,-19,-12,-33,-20,-29,-22,-22,-21,-35,-35,-115,-39,-97,-6,-9,-13,-21,0,0,0,0,0,0,0,0,0,0,0,0,0,0,0,0,0,0,0,0,0,0,0,0,0,0,0,0,0,0,0,0,0,0,0,0,0,0,0,0,0,0,0,0,0,0,0,0,-7,0,0,0,0,0,0,0]} 1. c4 {[%emt 0:00:01]} e5 {[%emt 0:00:09]} 2. g3 {[%emt 0:00:05]} c6 {[%emt 0:02:11]} 3. Nf3 {[%emt 0:00:10]} e4 {[%emt 0:00:06]} 4. Nd4 {[%emt 0:00:02]} d5 {[%emt 0:00:08]} 5. cxd5 {[%emt 0:00:09]} Qxd5 {[%emt 0:00:06]} 6. Nc2 {[%emt 0:00:05] A20: English Opening: 1...e5.} Nf6 {[%emt 0:00:18]} 7. Nc3 {[%emt 0:01:17]} Qe5 {[%emt 0:00:10]} 8. Ne3 {[%emt 0:01:32]} Bc5 {[%emt 0:03:15]} 9. Qc2 {[%emt 0:02:52]} O-O {[%emt 0:00:25]} 10. Bg2 {[%emt 0:01:00]} Re8 {[%emt 0:00:09]} 11. b3 $146 {[%emt 0:01:48]} ({Predecessor:} 11. O-O Na6 12. a3 Nc7 13. b4 Bd4 14. Bb2 Ncd5 15. Nc4 Qe6 16. Na4 Bxb2 17. Nc5 {0-1 Sternfeld,T (1592)-Khoury,T (1813) Wch U12 Batumi 2022 (7)}) 11... Na6 {[%emt 0:02:07]} 12. a3 {[%emt 0:01:25]} Bxe3 {[%emt 0:03:42]} 13. dxe3 {[%emt 0:03:20]} Bf5 {[%emt 0:00:24]} 14. b4 {[%emt 0:04:44]} Qe6 {[%emt 0:01:04]} 15. Qa2 {[%emt 0:00:39]} Qd7 {[%emt 0:04:57]} 16. O-O {[%emt 0:01:57]} Bh3 {[%emt 0:00:20]} 17. Rd1 {[%emt 0:01:55]} Qf5 {[%emt 0:00:09]} 18. Qd2 {[%emt 0:00:13]} Nc7 {[%emt 0:04:20]} 19. Qe1 {[%emt 0:02:07]} Bxg2 {[%emt 0:06:24]} 20. Kxg2 {[%emt 0:00:01]} Ne6 {[%emt 0:03:53]} 21. h3 {[%emt 0:02:48]} h5 {[%emt 0:00:34]} 22. Bb2 {[%emt 0:01:33]} a5 {[%emt 0:02:47]} 23. Rab1 {[%emt 0:09:14]} axb4 {[%emt 0:02:55]} 24. axb4 {[%emt 0:00:08]} Red8 {[%emt 0:01:41]} 25. Qf1 {[%emt 0:08:57]} Ng5 {[%emt 0:07:09]} 26. h4 {[%emt 0:01:17]} Ne6 {[%emt 0:00:34]} 27. f3 {[%emt 0:00:59] [#]} (27. Ra1 $15) 27... Qg6 {[%emt 0:24:41]} ({Black should try} 27... Rxd1 $1 $17 28. Rxd1 exf3+ 29. exf3 Qc2+ 30. Qf2 Qb3) 28. Ra1 {[%emt 0:03:21] [#]} ({Better is} 28. Nxe4 $15 Nxe4 29. fxe4) 28... Nc7 {[%emt 0:02:09]} (28... exf3+ $1 $17 29. exf3 Qc2+ 30. Qf2 Qb3 (30... Qxf2+ 31. Kxf2 Rxa1 32. Rxd8+ Nxd8 33. Bxa1 $11) 31. Rxa8 Rxa8) 29. Nxe4 $11 {[%emt 0:13:26]} (29. Rxa8 {is interesting.} Rxa8 30. Nxe4 Nxe4 31. fxe4 Ra2 32. Rd8+) 29... Nxe4 {[%emt 0:07:23]} 30. fxe4 {[%emt 0:00:58]} Qxe4+ {[%emt 0:03:06]} 31. Qf3 {[%emt 0:00:06]} Qxf3+ {[%emt 0:01:52]} 32. Kxf3 {[%emt 0:01:41]} Rxd1 {[%emt 0:00:07]} 33. Rxd1 {[%emt 0:00:04]} Ne6 {[%emt 0:17:45]} 34. Rd7 {[%emt 0:03:34]} b5 {[%emt 0:00:00]} 35. Rd6 {[%emt 0:01:48]} Rc8 {[%emt 0:00:00]} 36. Be5 {[%emt 0:01:53]} Kf8 {[%emt 0:00:00]} 37. Rd7 {[%emt 0:00:12]} Ke8 {[%emt 0:00:00]} 38. Ra7 {[%emt 0:00:34]} Rd8 {[%emt 0:00:00]} 39. Ra6 {[%emt 0:00:53]} Rd5 {[%emt 0:00:00]} 40. Ke4 {[%emt 0:00:50]} Kd7 {[%emt 0:00:00]} 41. Ra7+ {[%emt 0:00:12]} Ke8 {[%emt 0:00:00]} 42. Ra8+ {[%emt 0:01:10]} Kd7 {[%emt 0:00:00]} 43. Ra7+ {[%emt 0:05:19]} Ke8 {[%emt 0:00:00]} 44. Bd4 {[%emt 0:00:43]} g6 {[%emt 0:00:00]} 45. Bf6 {[%emt 0:04:05]} Rd2 {[%emt 0:00:00]} 46. Ke5 {[%emt 0:01:16]} Rd5+ {[%emt 0:00:06]} 47. Ke4 {[%emt 0:00:05]} Rd2 {[%emt 0:00:02]} 48. Ra3 {[%emt 0:02:40]} Rxe2 {[%emt 0:03:07]} 49. Ke5 {[%emt 0:00:42]} Rd2 {[%emt 0:00:37]} 50. e4 {[%emt 0:00:54]} Kd7 {[%emt 0:01:16]} 51. Ra7+ {[%emt 0:00:23]} Nc7 {[%emt 0:01:07]} 52. Be7 {[%emt 0:02:11]} Kxe7 {[%emt 0:01:24]} 53. Rxc7+ {[%emt 0:00:05]} Kf8 {[%emt 0:00:03]} 54. Rxc6 {[%emt 0:00:10]} Rb2 {[%emt 0:00:02]} 55. Kf6 {[%emt 0:01:21]} Rf2+ {[%emt 0:00:03]} 56. Ke5 {[%emt 0:00:54]} Rb2 {[%emt 0:00:04]} 57. Kf6 {[%emt 0:02:27]} Rf2+ {[%emt 0:00:05]} 58. Ke5 {[%emt 0:00:05]} 1/2-1/2

[Event "4NCL Spring GM Round Robin 2024"]
[Site "Peterborough"]
[Date "2024.03.27"]
[Round "9.3"]
[White "Agdelen, Huseyin Can"]
[Black "Chow, Samuel"]
[Result "1/2-1/2"]
[ECO "C11"]
[WhiteElo "2408"]
[BlackElo "2356"]
[Annotator "TA"]
[PlyCount "112"]
[EventDate "2024.03.22"]
[EventType "tourn"]
[EventCountry "ENG"]
[SourceTitle "playchess.com"]
[Source "ChessBase"]
[SourceQuality "1"]
[TimeControl "5400+30"]

{[%evp 55,112,148,147,133,235,233,227,240,216,221,228,186,213,202,460,472,393,374,311,338,547,518,580,576,584,584,584,584,484,0,259,93,142,120,259,254,245,0,0,0,0,0,0,0,0,0,0,0,0,0,0,0,0,0,0,0,0,0,0]} 1. e4 {[%emt 0:05:54]} e6 {[%emt 0:00:13]} 2. d4 {[%emt 0:00:26]} d5 {[%emt 0:00:19]} 3. Nc3 {[%emt 0:00:08]} Nf6 {[%emt 0:00:29]} 4. e5 {[%emt 0:01:52]} Nfd7 {[%emt 0:00:06]} 5. f4 {[%emt 0:00:06]} c5 {[%emt 0:00:03]} 6. Nf3 {[%emt 0:00:04]} Nc6 {[%emt 0:00:02]} 7. Be3 {[%emt 0:00:07]} a6 {[%emt 0:00:31]} 8. Ne2 {[%emt 0:00:43]} Qb6 {[%emt 0:03:18]} 9. Qc1 {[%emt 0:00:32]} Be7 {[%emt 0:01:21]} 10. g3 {[%emt 0:03:36]} O-O {[%emt 0:00:33]} 11. c3 {[%emt 0:04:29]} cxd4 {[%emt 0:08:38]} 12. Nexd4 {[%emt 0:06:41]} Nxd4 {[%emt 0:01:26]} 13. Bxd4 {[%emt 0:04:35]} Bc5 {[%emt 0:01:18]} 14. Bd3 {[%emt 0:01:39]} f5 {[%emt 0:02:04]} 15. Qd2 {[%emt 0:12:51]} Bxd4 {[%emt 0:01:28]} 16. Nxd4 {[%emt 0:03:03]} Nb8 {[%emt 0:01:43]} 17. O-O-O {[%emt 0:07:35]} Nc6 {[%emt 0:01:33]} 18. Bc2 {[%emt 0:00:26]} Nxd4 {[%emt 0:04:39]} 19. Qxd4 {[%emt 0:03:52]} Qxd4 {[%emt 0:01:19]} 20. Rxd4 {[%emt 0:00:07]} b5 {[%emt 0:00:39]} 21. Kd2 {[%emt 0:08:39]} Bb7 {[%emt 0:05:24]} 22. a4 {[%emt 0:02:02]} Bc6 {[%emt 0:02:21]} 23. Ra1 {[%emt 0:00:58]} Rfb8 {[%emt 0:02:11]} 24. axb5 {[%emt 0:14:55]} axb5 {[%emt 0:00:59]} 25. Rxa8 {[%emt 0:00:21]} Rxa8 {[%emt 0:00:04]} 26. Ke3 {[%emt 0:05:27]} Ra2 {[%emt 0:06:50]} 27. Rd2 {[%emt 0:01:07]} d4+ {[%emt 0:08:27]} 28. cxd4 {[%emt 0:02:54]} (28. Kxd4 $6 Rxb2 29. c4 bxc4 $11 (29... Be4 $2 30. Kc3 $18)) 28... Bd5 {[%emt 0:00:47]} (28... Rxb2 $2 29. Bxf5 Rb3+ (29... Rxd2 $2 30. Bxe6+ Kf8 31. Kxd2 $18) 30. Rd3 $18) 29. Bd1 {[%emt 0:01:51]} b4 {[%emt 0:02:43]} (29... Kf7 $16 {was called for.} 30. Bf3 Bc4) 30. Bf3 $1 $18 {[%emt 0:00:41]} Bb3 {[%emt 0:02:09]} 31. d5 {[%emt 0:02:51]} exd5 {[%emt 0:00:43]} 32. Kd4 $1 {[%emt 0:00:32]} Ra5 {[%emt 0:04:31]} 33. Rd3 {[%emt 0:05:23]} (33. g4 $6 fxg4 34. Bxg4 Kf7) 33... Bc4 {[%emt 0:03:53]} 34. Re3 $1 {[%emt 0:00:01]} Ra2 $2 {[%emt 0:00:24]} (34... b3 35. e6 Kf8) 35. e6 $18 {[%emt 0:00:58]} (35. Bxd5+ Bxd5 36. Kxd5 Rxb2 $11) 35... Kf8 {[%emt 0:00:39]} 36. e7+ {[%emt 0:00:24]} (36. Bxd5 Bxd5 37. Kxd5 Rxb2 $17) 36... Ke8 {[%emt 0:00:04]} 37. b3 {[%emt 0:00:07]} (37. Bxd5 Bxd5 38. Kxd5 Rxb2 $11) 37... Rd2+ $2 {[%emt 0:05:00]} (37... Bb5 {is a better defense.} 38. Bxd5 (38. Kxd5 Rc2 $16) 38... Rxh2) 38. Kc5 $18 {[%emt 0:00:20]} Bd3 {[%emt 0:05:11]} 39. Bxd5 {[%emt 0:01:08]} (39. Kxd5 Be4+ 40. Kc5 (40. Ke6 Bxf3 41. Rxf3 Rxh2 $16) 40... Bxf3 41. Rxf3 Rxh2 $11 (41... Kxe7 42. h4 $16)) 39... Be4 {[%emt 0:00:07]} 40. Bxe4 {[%emt 0:00:06]} fxe4 {[%emt 0:00:04]} 41. Rxe4 {[%emt 0:00:32]} Rxh2 {[%emt 0:00:06]} 42. Kd6 $2 {[%emt 0:00:54]} (42. Rxb4 Rh5+ 43. Kc6 (43. Kd6 Rh6+ 44. Kc5 Rg6 $16) 43... Rh6+ 44. Kc7 Re6 $16) (42. Re3 h5 $16) (42. Kxb4 $18 Rh3 43. g4) 42... Rh6+ $2 {[%emt 0:01:17][%mdl 8192] [#]} (42... Rd2+ $1 $11 43. Kc5 Rd3) 43. Re6 $2 {[%emt 0:00:11]} (43. Kd5 $1 $18) 43... Rh3 $16 {[%emt 0:00:22]} 44. Re3 {[%emt 0:00:05]} h5 {[%emt 0:02:25]} (44... Rh5 $16 {might work better.} 45. Re4 Rh6+ 46. Kc5 Rh3) 45. Ke6 $18 {[%emt 0:00:17]} Rh1 {[%emt 0:00:26] [#]} 46. Kf5 $2 {[%emt 0:01:18]} (46. Re4 $1 $18) 46... Rc1 $11 {[%emt 0:00:55]} 47. Re4 {[%emt 0:00:39]} Rc3 {[%emt 0:00:47]} 48. Rxb4 {[%emt 0:00:30]} Rxg3 {[%emt 0:02:59]} 49. Rb7 {[%emt 0:00:29]} h4 {[%emt 0:00:38]} 50. b4 {[%emt 0:00:27]} h3 {[%emt 0:00:41]} 51. b5 {[%emt 0:00:27]} (51. Ke6 Rg6+ 52. Kf5 Rf6+ 53. Kg4 h2 54. Rb8+ Kxe7 55. Rb7+ Kd6 56. Rb6+ Kd7 (56... Kc7 {leads to mate.} 57. Rxf6 gxf6 58. Kh4 Kd6 59. Kg3 h1=Q 60. Kf2 Kd5 61. Ke3 Qh3+ 62. Kd2 Kd4 63. Kc2 Qc3+ 64. Kb1 Qb3+ 65. Kc1 Kd3 66. f5 Qc2#) 57. Rxf6 gxf6 (57... h1=R 58. Rg6 $16) 58. Kf3 h1=Q+ (58... h1=R 59. Ke4 Rb1 60. Kf5 Ke7 61. b5 Rxb5+ 62. Ke4 Ke6 63. Kd4 Rb4+ 64. Kd3 Rxf4 65. Ke2 Ke5 66. Kd3 Re4 67. Kc2 f5 68. Kd1 f4 69. Kc2 f3 70. Kd2 f2 71. Kc3 f1=Q 72. Kd2 Qf3 73. Kc1 Qf2 74. Kd1 Re1#) 59. Ke3 Qe1+ 60. Kd3 Qxb4 61. Ke3 Ke6 62. Kf3 Kf5 63. Kg3 Qb3+ (63... Qxf4+ 64. Kh3 Qg4+ 65. Kh2 Kf4 66. Kh1 Kf3 67. Kh2 Qg2#) 64. Kg2 Kxf4 (64... Qb1 65. Kg3 Ke4 66. Kg2 Kxf4 67. Kf2 Qc2+ 68. Kf1 Kf3 69. Kg1 Qg2#) 65. Kh2 Qc2+ 66. Kg1 Kf3 67. Kh1 Qg2#) 51... h2 {[%emt 0:02:03]} 52. Rb8+ {[%emt 0:00:04]} Kxe7 {[%emt 0:00:04]} 53. Rh8 {[%emt 0:00:04]} Rg2 {[%emt 0:00:52]} 54. b6 {[%emt 0:00:10]} Kf7 {[%emt 0:00:16]} 55. b7 {[%emt 0:02:22]} Rb2 {[%emt 0:00:07]} 56. Rxh2 {[%emt 0:00:00]} Rxb7 {[%emt 0:00:04]} 1/2-1/2

[Event "4NCL Spring GM Round Robin 2024"]
[Site "Peterborough"]
[Date "2024.03.27"]
[Round "9.4"]
[White "Wadsworth, Matthew J"]
[Black "Kalavannan, Koby"]
[Result "1/2-1/2"]
[ECO "E92"]
[WhiteElo "2450"]
[BlackElo "2324"]
[Annotator "TA"]
[PlyCount "22"]
[EventDate "2024.03.22"]
[EventType "tourn"]
[EventCountry "ENG"]
[SourceTitle "playchess.com"]
[Source "ChessBase"]
[SourceQuality "1"]
[TimeControl "5400+30"]

{[%evp 17,22,0,30,0,47,0,32]} 1. c4 {[%emt 0:00:03]} d6 {[%emt 0:00:21]} 2. Nc3 {[%emt 0:00:17]} g6 {[%emt 0:00:14]} 3. d4 {[%emt 0:00:12]} Bg7 {[%emt 0:00:05]} 4. Nf3 {[%emt 0:00:09]} Nf6 {[%emt 0:00:06]} 5. e4 {[%emt 0:00:05]} O-O {[%emt 0:00:07]} 6. Be2 {[%emt 0:00:06]} e5 {[%emt 0:00:12]} 7. d5 {[%emt 0:00:07]} a5 {[%emt 0:00:07]} 8. Be3 {[%emt 0:00:15]} Ng4 {[%emt 0:00:28]} 9. Bc1 {[%emt 0:00:08]} Nf6 {[%emt 0:01:50]} 10. Be3 {[%emt 0:00:14]} Ng4 {[%emt 0:00:07]} 11. Bc1 {[%emt 0:00:07]} Nf6 {[%emt 0:00:02] A rather calm draw.   Weighted Error Value: White=0.39/Black=0.00 (flawless) .  OK:         	---       	Black=2} 1/2-1/2

[Event "4NCL Spring GM Round Robin 2024"]
[Site "Peterborough"]
[Date "2024.03.27"]
[Round "9.5"]
[White "Royal, Shreyas"]
[Black "Makkar, Rajat"]
[Result "0-1"]
[ECO "D46"]
[WhiteElo "2457"]
[BlackElo "2434"]
[Annotator "RC"]
[PlyCount "106"]
[EventDate "2024.03.22"]
[EventType "tourn"]
[EventCountry "ENG"]
[SourceTitle "playchess.com"]
[Source "ChessBase"]
[SourceQuality "1"]
[TimeControl "5400+30"]

1. d4 {[%emt 0:00:05]} d5 {[%emt 0:01:44]} 2. c4 {[%emt 0:00:09]} c6 {[%emt 0:00:12]} 3. Nf3 {[%emt 0:00:08]} Nf6 {[%emt 0:00:06]} 4. Nc3 {[%emt 0:00:05]} e6 {[%emt 0:00:10]} 5. e3 {[%emt 0:00:07]} Nbd7 {[%emt 0:00:11]} 6. Qc2 {[%emt 0:00:08]} Bd6 {[%emt 0:00:14]} 7. Be2 {[%emt 0:00:05]} O-O {[%emt 0:00:06]} 8. O-O {[%emt 0:00:07]} dxc4 {[%emt 0:00:03]} 9. Bxc4 {[%emt 0:00:07]} b5 {[%emt 0:00:03]} 10. Bd3 {[%emt 0:00:06]} Bb7 {[%emt 0:00:05]} 11. a3 {[%emt 0:00:05]} Rc8 {[%emt 0:00:14]} 12. b4 {[%emt 0:00:28]} a5 {[%emt 0:00:09]} 13. Qb3 {[%emt 0:00:51]} Ra8 {[%emt 0:11:01]} 14. Rb1 {[%emt 0:09:52]} Qe7 {[%emt 0:02:18]} 15. e4 {[%emt 0:07:52]} e5 {[%emt 0:02:11]} 16. Ne2 {[%emt 0:09:12]} axb4 {[%emt 0:09:34]} 17. dxe5 {[%emt 0:08:55]} Bxe5 {[%emt 0:02:07]} 18. axb4 {[%emt 0:03:24]} c5 {[%emt 0:04:48]} 19. bxc5 {[%emt 0:13:42]} Nxc5 {[%emt 0:02:48]} 20. Ba3 {[%emt 0:00:02]} Nfxe4 {[%emt 0:03:09]} 21. Bxe4 {[%emt 0:04:21]} Bxe4 {[%emt 0:01:07]} 22. Bxc5 {[%emt 0:01:02]} Qxc5 {[%emt 0:00:11]} 23. Qxb5 {[%emt 0:01:34]} Qxb5 {[%emt 0:05:02]} 24. Rxb5 {[%emt 0:00:02]} Bf6 {[%emt 0:00:24]} 25. Rb3 {[%emt 0:01:21]} Rfd8 {[%emt 0:00:52]} 26. h3 {[%emt 0:01:11]} h5 {[%emt 0:02:39]} 27. Re1 {[%emt 0:01:30]} Bc2 {[%emt 0:04:28]} 28. Rb5 {[%emt 0:00:27]} g6 {[%emt 0:02:49]} 29. Nf4 {[%emt 0:00:55]} Ba4 {[%emt 0:03:54]} 30. Rc5 {[%emt 0:00:28]} Bb3 {[%emt 0:00:34]} 31. g4 {[%emt 0:02:28]} hxg4 {[%emt 0:01:16]} 32. hxg4 {[%emt 0:00:01]} Ra4 {[%emt 0:00:20]} 33. Re3 {[%emt 0:01:37]} Bd1 {[%emt 0:01:40]} 34. Nd5 {[%emt 0:01:13]} Rxg4+ {[%emt 0:00:57]} 35. Kf1 {[%emt 0:00:28]} Kg7 {[%emt 0:06:47]} 36. Nxf6 {[%emt 0:01:06]} Kxf6 {[%emt 0:00:24]} 37. Ne5 {[%emt 0:01:00]} Rf4 {[%emt 0:02:19]} 38. Rd3 {[%emt 0:02:44]} Rxd3 {[%emt 0:01:12]} 39. Nxd3 {[%emt 0:00:02]} Re4 {[%emt 0:01:23]} 40. Kg2 {[%emt 0:01:01]} Be2 {[%emt 0:00:56]} 41. Nc1 {[%emt 0:01:31]} Rg4+ {[%emt 0:09:22]} 42. Kh3 {[%emt 0:00:13]} Rc4 {[%emt 0:00:04]} 43. Nb3 {[%emt 0:00:11]} Rf4 {[%emt 0:00:55]} 44. Kg2 {[%emt 0:00:08]} g5 {[%emt 0:00:34]} 45. Rc3 {[%emt 0:01:26]} Kg6 {[%emt 0:01:00]} 46. Nc5 {[%emt 0:02:36]} Bc4 {[%emt 0:03:45]} 47. Re3 {[%emt 0:01:01]} Rg4+ {[%emt 0:01:12]} 48. Kf3 {[%emt 0:01:13]} Rf4+ {[%emt 0:01:33]} 49. Kg3 {[%emt 0:00:44]} f5 {[%emt 0:01:52]} 50. Re8 {[%emt 0:05:05]} Bd5 {[%emt 0:00:44]} 51. Rd8 {[%emt 0:00:35]} Rf3+ {[%emt 0:00:53]} 52. Kg2 {[%emt 0:00:07]} Rd3+ {[%emt 0:00:15]} 53. Kh2 {[%emt 0:00:53]} Rd1 {[%emt 0:00:28]} 0-1